bitfinex-derivatives/quotes_BTCF0:USTF0_20251215
["timestamp","ask_amount","ask_price","bid_price","bid_amount"]
[1765818002366,0.7157357,86389.0,86388.0,0.10388955]
[1765818002575,0.70416,86388.0,86387.0,0.10388955]
[1765818002777,0.7157365,86383.0,86382.0,0.3498336]
[1765818003072,1.0765365,86383.0,86382.0,0.0011736]
[1765818003374,1.0765365,86383.0,86382.0,0.3508336]
[1765818003574,1.0765365,86383.0,86382.0,0.6811236]
[1765818003777,1.0765365,86383.0,86382.0,0.0021736]
[1765818003778,1.2445465,86383.0,86382.0,0.0021736]
[1765818003976,1.0765365,86383.0,86382.0,0.0021736]
[1765818004674,1.2445465,86383.0,86382.0,0.0021736]
[1765818004869,0.7157371,86379.0,86378.0,0.02238288]
[1765818005176,0.715738,86372.0,86371.0,0.00013582]
[1765818005373,0.70416,86359.0,86358.0,0.10387376]
[1765818005576,0.0115794,86362.0,86356.0,0.3602401]
[1765818005577,0.70416,86357.0,86356.0,0.3602401]
[1765818005780,0.3608,86364.0,86363.0,0.67895]
[1765818005973,1.0765391,86364.0,86363.0,0.34866]
[1765818006373,0.70416,86358.0,86351.0,0.10387376]
[1765818006571,0.70416,86358.0,86357.0,0.67895]
[1765818006879,0.71574,86357.0,86356.0,0.02067191]
[1765818007074,0.34949,86357.0,86356.0,0.67895]
[1765818007380,0.70416,86357.0,86356.0,0.67895]
[1765818007581,0.70416,86357.0,86356.0,0.69940333]
[1765818007780,0.70416,86357.0,86356.0,0.02545333]
[1765818008176,0.34949,86357.0,86356.0,0.70440333]
[1765818008488,1.07667502,86364.0,86363.0,0.34866]
[1765818008673,0.7157398,86359.0,86358.0,0.67895]
[1765818008869,0.70416,86359.0,86358.0,0.67895]
[1765818009282,0.70416,86358.0,86357.0,0.0115799]
[1765818009980,0.71574,86357.0,86356.0,0.02645333]
[1765818010179,0.34949,86357.0,86356.0,0.70540333]
[1765818010690,0.70416,86357.0,86356.0,0.02045333]
[1765818010879,0.70416,86357.0,86350.0,0.3608]
[1765818010880,0.70416,86351.0,86350.0,0.44351144]
[1765818011072,0.3608,86357.0,86348.0,0.0001737]
[1765818011073,0.7157411,86349.0,86348.0,0.0001737]
[1765818011275,1.0765411,86349.0,86348.0,0.01947994]
[1765818011774,1.1165411,86349.0,86348.0,0.01947994]
[1765818012675,1.1175411,86349.0,86348.0,0.01947994]
[1765818013374,1.0775411,86349.0,86348.0,0.01947994]
[1765818013780,0.70416,86340.0,86339.0,1.05978827]
[1765818013981,0.70416,86340.0,86339.0,0.91795186]
[1765818014182,0.70416,86340.0,86339.0,0.01909946]
[1765818014378,0.70416,86338.0,86337.0,0.00013426]
[1765818014577,0.70416,86338.0,86337.0,0.01171696]
[1765818014772,0.70416,86338.0,86337.0,0.3797556]
[1765818014983,0.70416,86338.0,86337.0,0.36037696]
[1765818015182,0.70416,86338.0,86337.0,0.01942182]
[1765818015681,0.70416,86338.0,86337.0,0.69937182]
[1765818015887,0.7157421,86342.0,86341.0,0.67895]
[1765818016280,0.7157426,86338.0,86337.0,0.03300452]
[1765818016482,0.70416,86338.0,86337.0,0.38166452]
[1765818016883,0.70416,86338.0,86337.0,0.71195452]
[1765818017088,0.34949,86345.0,86344.0,0.6905318]
[1765818017280,0.70416,86345.0,86344.0,0.67895]
[1765818017475,0.70416,86345.0,86340.0,0.36925587]
[1765818017476,0.0001737,86346.0,86345.0,0.6905316]
[1765818018184,0.7043337,86346.0,86345.0,0.6905316]
[1765818018392,0.0001737,86346.0,86345.0,0.6905316]
[1765818018591,0.0001737,86346.0,86345.0,0.80634673]
[1765818018995,0.3610697,86360.0,86359.0,0.6905296]
[1765818019186,0.7557397,86360.0,86359.0,0.6905296]
[1765818019488,0.7557397,86360.0,86359.0,0.34866]
[1765818019991,0.70416,86359.0,86358.0,0.0115798]
[1765818020193,0.73416,86359.0,86358.0,0.0115798]
[1765818020384,0.03,86359.0,86358.0,0.6905298]
[1765818020580,0.0001737,86368.0,86363.0,0.6905292]
[1765818021079,0.70429582,86364.0,86363.0,1.4223692]
[1765818021695,0.00013582,86364.0,86363.0,1.4223692]
[1765818021892,0.00113582,86364.0,86363.0,1.4223692]
[1765818022088,0.35062582,86364.0,86363.0,1.4223692]
[1765818022387,0.70529582,86364.0,86363.0,0.6905292]
[1765818022992,0.70529582,86364.0,86363.0,0.002]
[1765818023388,0.00113582,86364.0,86363.0,0.68095]
[1765818023585,0.70529582,86364.0,86363.0,0.68095]
[1765818023790,0.00113582,86364.0,86363.0,0.67995]
[1765818023991,0.00013582,86364.0,86363.0,0.67995]
[1765818024302,0.34962582,86364.0,86363.0,0.68195]
[1765818024593,0.70429582,86364.0,86363.0,0.67895]
[1765818024791,0.70429582,86364.0,86363.0,0.67995]
[1765818024990,0.00013582,86364.0,86363.0,0.67995]
[1765818025185,0.00013582,86364.0,86363.0,0.67895]
[1765818025387,0.0001737,86368.0,86367.0,0.6905287]
[1765818025589,0.0001737,86368.0,86367.0,1.4222887]
[1765818026391,0.0115772,86379.0,86378.0,0.3418669]
[1765818026595,0.8357372,86379.0,86378.0,0.6905269]
[1765818027283,0.82416,86379.0,86378.0,0.6905269]
[1765818027484,0.12,86379.0,86378.0,1.4222469]
[1765818027784,0.0001737,86387.0,86386.0,0.6905261]
[1765818027985,0.0201737,86387.0,86386.0,0.6905261]
[1765818028484,0.0001737,86387.0,86386.0,0.6905261]
[1765818028690,0.3608,86409.0,86382.0,0.3608]
[1765818028691,0.7157351,86395.0,86394.0,0.88727]
[1765818028883,0.8557351,86395.0,86394.0,1.61895]
[1765818029502,0.8557351,86395.0,86394.0,1.41063]
[1765818029692,0.14,86395.0,86394.0,1.61895]
[1765818030096,0.142,86395.0,86394.0,1.61895]
[1765818030892,0.143,86395.0,86394.0,1.61895]
[1765818031298,0.3608,86409.0,86408.0,0.67895]
[1765818031597,0.70647435,86418.0,86417.0,0.360232]
[1765818031791,0.17231435,86418.0,86417.0,1.422122]
[1765818032193,0.17231435,86418.0,86417.0,1.44091262]
[1765818032394,0.86605435,86418.0,86417.0,1.42934062]
[1765818032699,0.86605435,86418.0,86417.0,1.44091262]
[1765818032899,0.52320435,86418.0,86417.0,1.44091262]
[1765818033302,0.17231435,86418.0,86417.0,1.44091262]
[1765818034005,0.51197435,86418.0,86417.0,1.44191262]
[1765818034303,0.15473005,86418.0,86417.0,1.44191262]
[1765818034503,0.15473005,86418.0,86417.0,1.44091262]
[1765818034704,0.15473005,86418.0,86417.0,1.44191262]
[1765818035108,0.83724005,86418.0,86417.0,1.44191262]
[1765818035404,0.83724005,86418.0,86417.0,1.44291262]
[1765818035790,0.15473005,86418.0,86417.0,1.44191262]
[1765818035995,0.15473005,86418.0,86417.0,1.44291262]
[1765818036192,0.16630185,86418.0,86417.0,0.71131262]
[1765818036396,0.16630185,86418.0,86417.0,0.75219062]
[1765818036397,0.84881185,86418.0,86417.0,0.75219062]
[1765818036597,0.84881185,86418.0,86417.0,1.43221262]
[1765818037202,0.84881185,86418.0,86417.0,1.43121262]
[1765818037405,0.15473005,86418.0,86417.0,1.43221262]
[1765818037798,0.15473005,86418.0,86417.0,0.70081262]
[1765818038002,0.3608,86427.0,86426.0,0.6800208]
[1765818038203,0.6940796,86435.0,86434.0,0.66845]
[1765818038403,0.87251,86435.0,86434.0,0.66845]
[1765818038797,0.19,86435.0,86434.0,0.66845]
[1765818040102,0.8840796,86435.0,86434.0,0.66845]
[1765818040303,0.8840796,86435.0,86430.0,0.34355]
[1765818040304,0.6940801,86431.0,86430.0,0.34355]
[1765818040497,0.6940806,86427.0,86426.0,0.34472359]
[1765818040704,0.3608,86427.0,86426.0,1.06976359]
[1765818040899,0.3608,86434.0,86433.0,0.0115698]
[1765818041106,0.5508,86434.0,86433.0,1.4112598]
[1765818041405,0.5508,86434.0,86433.0,1.39969]
[1765818041806,0.68251,86431.0,86430.0,0.001]
[1765818042100,0.42966,86431.0,86430.0,1.52976]
[1765818042300,0.09,86431.0,86430.0,1.52976]
[1765818042502,0.09,86431.0,86430.0,1.52876]
[1765818042910,0.77251,86431.0,86430.0,1.52876]
[1765818043310,0.09,86431.0,86430.0,1.52976]
[1765818043812,0.09,86431.0,86430.0,1.53076]
[1765818044802,0.09,86431.0,86430.0,0.73312]
[1765818044803,0.77251,86431.0,86430.0,0.73312]
[1765818045004,0.09,86431.0,86430.0,1.2789]
[1765818045211,0.09,86431.0,86430.0,1.39359989]
[1765818045412,0.09,86431.0,86430.0,1.39459989]
[1765818046112,0.09,86431.0,86430.0,1.39359989]
[1765818046508,0.09,86431.0,86430.0,1.39259989]
[1765818046909,0.09,86431.0,86430.0,1.39359989]
[1765818047220,0.09,86431.0,86430.0,1.39459989]
[1765818047406,0.3608,86444.0,86443.0,0.6800185]
[1765818047608,0.17,86444.0,86443.0,1.4110585]
[1765818048711,0.1815684,86444.0,86443.0,1.4110585]
[1765818049108,0.17,86444.0,86443.0,1.4110585]
[1765818049409,0.3214,86478.0,86443.0,1.4110585]
[1765818049410,1.04331,86462.0,86461.0,0.6800161]
[1765818049608,1.21331,86462.0,86461.0,1.07455]
[1765818049910,0.68251,86454.0,86453.0,0.66862349]
[1765818050098,0.68251,86454.0,86453.0,0.68019069]
[1765818050099,0.77251,86454.0,86453.0,0.68019069]
[1765818050306,0.77251,86454.0,86453.0,2.99019495]
[1765818050604,0.77251,86454.0,86453.0,1.50017349]
[1765818050807,0.77251,86454.0,86453.0,0.00017349]
[1765818050999,0.77251,86454.0,86453.0,0.66862349]
[1765818051412,0.77251,86454.0,86453.0,0.34472349]
[1765818051609,0.77251,86454.0,86453.0,0.00117349]
[1765818052027,0.77251,86454.0,86453.0,0.66962349]
[1765818052211,0.77351,86454.0,86453.0,0.66962349]
[1765818052509,0.091,86454.0,86453.0,0.66962349]
[1765818052716,0.092,86454.0,86453.0,0.66862349]
[1765818053109,0.091,86454.0,86453.0,0.66862349]
[1765818053316,0.09,86454.0,86453.0,0.66862349]
[1765818054011,0.77251,86454.0,86453.0,0.66962349]
[1765818054415,0.09,86454.0,86453.0,0.66962349]
[1765818054622,0.09,86454.0,86453.0,0.7852926]
[1765818054914,0.3608,86463.0,86462.0,0.66845]
[1765818055121,0.5208,86463.0,86462.0,1.410816]
[1765818055321,0.68251,86478.0,86477.0,0.66845]
[1765818055519,0.9029549,86470.0,86469.0,0.3608]
[1765818055825,0.68251,86458.0,86457.0,1.07251]
[1765818056119,0.694077,86454.0,86453.0,0.00117349]
[1765818056322,0.694077,86454.0,86453.0,0.00017349]
[1765818056823,1.194877,86454.0,86453.0,0.00017349]
[1765818057616,1.064877,86454.0,86453.0,0.00117349]
[1765818057911,1.064877,86454.0,86453.0,0.00217349]
[1765818058219,1.054877,86454.0,86453.0,0.67062349]
[1765818058615,1.055877,86454.0,86453.0,0.00117349]
[1765818059014,1.055877,86454.0,86453.0,0.00017349]
[1765818059419,1.054877,86454.0,86453.0,0.00017349]
[1765818059819,1.054877,86454.0,86453.0,0.34372349]
[1765818060020,1.054877,86454.0,86453.0,0.00017349]
[1765818061411,0.68251,86436.0,86435.0,0.3608]
[1765818061615,0.68251,86436.0,86435.0,0.3723696]
[1765818061819,0.68251,86436.0,86435.0,1.8723696]
[1765818062814,0.00017293,86444.0,86443.0,0.6779785]
[1765818063024,0.00017293,86444.0,86443.0,1.7694185]
[1765818063319,0.002,86454.0,86453.0,0.6779772]
[1765818063516,0.002,86454.0,86453.0,1.7694172]
[1765818063922,0.002,86454.0,86453.0,1.88508631]
[1765818064117,0.35501,86467.0,86466.0,0.3484051]
[1765818064317,0.49501,86467.0,86466.0,0.6779751]
[1765818064626,0.49501,86467.0,86466.0,0.79364421]
[1765818064627,0.14,86467.0,86466.0,0.79364421]
[1765818064826,0.49501,86467.0,86466.0,0.79364421]
[1765818065020,0.8405253,86467.0,86466.0,0.09049588]
[1765818065324,0.7005257,86464.0,86463.0,0.3608]
[1765818065624,0.7305257,86464.0,86463.0,0.3608]
[1765818065828,0.7005264,86459.0,86458.0,0.00017349]
[1765818066328,0.19969,86472.0,86471.0,0.66641]
[1765818066524,0.12,86472.0,86471.0,0.66641]
[1765818067040,0.19969,86490.0,86477.0,0.011564]
[1765818067041,0.68896,86478.0,86477.0,0.011564]
[1765818067232,0.80896,86478.0,86477.0,0.372364]
[1765818067725,0.68896,86468.0,86467.0,0.3608]
[1765818067929,0.7005253,86467.0,86466.0,0.001]
[1765818068136,0.7005264,86459.0,86458.0,0.00017349]
[1765818068429,0.7605264,86459.0,86458.0,0.00017349]
[1765818069329,0.74896,86459.0,86458.0,0.01173999]
[1765818069526,0.011566,86463.0,86458.0,0.00017349]
[1765818069727,0.3608,86466.0,86458.0,0.00017349]
[1765818069728,0.68896,86459.0,86458.0,0.00017349]
[1765818070225,0.35601,86459.0,86458.0,0.67814999]
[1765818070432,0.001,86459.0,86458.0,0.67814999]
[1765818070930,0.35701,86459.0,86458.0,0.67814999]
[1765818071127,0.002,86459.0,86458.0,0.67814999]
[1765818071632,0.68896,86468.0,86467.0,0.0115652]
[1765818071822,0.35501,86465.0,86458.0,0.00017349]
[1765818072015,0.35501,86465.0,86464.0,0.33684]
[1765818072226,0.35501,86465.0,86464.0,0.66641]
[1765818072425,0.35501,86465.0,86464.0,0.6779757]
[1765818072623,0.19969,86472.0,86470.0,0.0115649]
[1765818072624,0.68896,86471.0,86470.0,0.0115649]
[1765818073130,0.68896,86459.0,86458.0,0.00217349]
[1765818073725,0.68896,86468.0,86467.0,0.6779753]
[1765818073924,0.35501,86465.0,86459.0,0.0115664]
[1765818074230,0.7005264,86459.0,86458.0,0.00117349]
[1765818074536,0.7005264,86459.0,86458.0,0.00017349]
[1765818074925,0.68896,86459.0,86458.0,0.00017349]
[1765818075634,0.68896,86459.0,86458.0,0.00117349]
[1765818076920,0.68996,86459.0,86458.0,0.00017349]
[1765818077724,0.69096,86459.0,86458.0,0.00017349]
[1765818078226,0.7005282,86445.0,86444.0,0.3608]
[1765818078632,0.68896,86445.0,86444.0,1.02721]
[1765818079430,0.68896,86445.0,86444.0,1.02821]
[1765818079626,0.19969,86448.0,86447.0,0.66641]
[1765818079831,0.68913349,86453.0,86452.0,0.3484073]
[1765818080429,0.00017349,86453.0,86452.0,1.15445845]
[1765818080839,0.68913349,86453.0,86452.0,0.79365845]
[1765818081139,0.00017349,86453.0,86452.0,0.79365845]
[1765818081434,0.3608,86480.0,86452.0,0.79365845]
[1765818081435,0.5547,86472.0,86471.0,0.6779748]
[1765818081627,1.02865,86472.0,86471.0,0.3484048]
[1765818082022,0.14,86472.0,86471.0,0.6779748]
[1765818082232,0.14,86472.0,86471.0,0.79361983]
[1765818082736,0.22,86485.0,86484.0,0.677973]
[1765818082939,0.14,86485.0,86484.0,1.038773]
[1765818083136,0.82896,86485.0,86484.0,1.038773]
[1765818083340,0.14,86485.0,86484.0,1.15441803]
[1765818083834,0.19969,86496.0,86495.0,0.3484015]
[1765818084032,0.38969,86496.0,86495.0,0.3484015]
[1765818084432,0.19,86496.0,86495.0,0.69732919]
[1765818084738,1.07865,86496.0,86495.0,0.03091919]
[1765818085238,1.07865,86496.0,86495.0,0.03191919]
[1765818085440,1.07865,86496.0,86495.0,0.02035769]
[1765818085638,1.07865,86496.0,86495.0,0.01935769]
[1765818085832,0.7005225,86488.0,86487.0,0.00017349]
[1765818086039,0.7505225,86488.0,86487.0,0.00017349]
[1765818086342,0.73896,86488.0,86487.0,0.01907539]
[1765818086540,0.73896,86488.0,86487.0,0.00017349]
[1765818086835,0.73896,86488.0,86487.0,0.00217349]
[1765818087140,0.73896,86488.0,86487.0,0.01373609]
[1765818087539,0.73896,86488.0,86487.0,0.0335264]
[1765818087741,0.69127221,86498.0,86497.0,0.6779713]
[1765818087934,0.68896,86495.0,86494.0,0.0115616]
[1765818088134,0.79896,86495.0,86494.0,0.0115616]
[1765818088437,0.7005225,86488.0,86487.0,0.0199638]
[1765818089032,0.88865,86472.0,86468.0,0.3608]
[1765818089239,0.3608,86490.0,86468.0,0.3608]
[1765818089240,0.00231221,86498.0,86497.0,0.4595013]
[1765818089431,0.5547,86508.0,86507.0,0.4594999]
[1765818089633,1.01865,86508.0,86507.0,0.3723599]
[1765818090340,1.01865,86508.0,86497.0,0.3608]
[1765818090341,0.65377,86498.0,86497.0,0.3723613]
[1765818090642,0.65477,86498.0,86497.0,0.45110623]
[1765818090849,0.65477,86498.0,86497.0,0.3608]
[1765818091047,0.65377,86498.0,86497.0,0.3608]
[1765818091742,0.65477,86498.0,86497.0,0.3608]
[1765818092044,0.65477,86498.0,86489.0,0.36097349]
[1765818092045,0.7154322,86490.0,86489.0,0.09175516]
[1765818092246,0.70387,86490.0,86489.0,0.09175516]
[1765818092746,1.43399,86490.0,86489.0,0.00017349]
[1765818092942,0.70387,86490.0,86489.0,0.00017349]
[1765818093242,0.70387,86490.0,86489.0,0.36097349]
[1765818093243,1.34667,86490.0,86489.0,0.36097349]
[1765818093446,0.002,86490.0,86489.0,1.13980591]
[1765818093743,0.003,86490.0,86489.0,1.13980591]
[1765818093945,0.64036,86490.0,86489.0,1.13980591]
[1765818094347,0.001,86490.0,86489.0,1.25542688]
[1765818094543,0.00017349,86506.0,86505.0,0.6988202]
[1765818094743,0.10017349,86506.0,86505.0,0.6988202]
[1765818094942,0.80404349,86506.0,86505.0,0.0115602]
[1765818095144,0.10017349,86506.0,86505.0,0.6988202]
[1765818095853,0.45601349,86506.0,86505.0,0.6988202]
[1765818096041,0.10017349,86506.0,86505.0,0.6988202]
[1765818096344,0.45601349,86506.0,86505.0,0.6988202]
[1765818096749,0.10017349,86506.0,86505.0,0.6988202]
[1765818097149,0.10117349,86506.0,86505.0,0.6988202]
[1765818097342,0.10117349,86506.0,86505.0,0.81441978]
[1765818097542,0.00117349,86506.0,86505.0,0.81441978]
[1765818098145,0.70387,86505.0,86504.0,0.3723603]
[1765818098343,0.70387,86505.0,86504.0,0.3608]
[1765818098850,0.70387,86505.0,86494.0,0.3608]
[1765818098851,0.70387,86495.0,86494.0,0.3723617]
[1765818100051,0.70387,86495.0,86494.0,0.3733617]
[1765818100458,0.73,86500.0,86499.0,0.68726]
[1765818100650,0.741561,86500.0,86497.0,0.0115612]
[1765818100851,0.70387,86495.0,86494.0,0.7026]
[1765818101356,0.70387,86495.0,86494.0,0.7006]
[1765818102360,0.70387,86495.0,86494.0,0.3408]
[1765818102654,1.43383,86495.0,86494.0,0.3408]
[1765818103050,1.43383,86495.0,86494.0,0.3398]
[1765818103051,1.43483,86495.0,86494.0,0.3398]
[1765818103361,0.7154322,86490.0,86489.0,0.09174591]
[1765818103556,1.4453922,86490.0,86489.0,0.09174591]
[1765818103960,1.4453922,86490.0,86489.0,0.00017349]
[1765818104858,1.4463922,86490.0,86489.0,0.00017349]
[1765818105064,1.5163922,86490.0,86489.0,3.49e-06]
[1765818105361,0.7154342,86475.0,86474.0,0.3608]
[1765818105565,1.43383,86475.0,86474.0,0.3723644]
[1765818106154,1.43383,86475.0,86474.0,0.09462223]
[1765818106350,0.715435,86469.0,86467.0,0.44395276]
[1765818106560,0.70387,86468.0,86467.0,0.09387137]
[1765818106756,0.7154353,86467.0,86466.0,0.00017349]
[1765818107357,1.4453953,86467.0,86466.0,0.00017349]
[1765818107762,1.4453953,86467.0,86466.0,0.79028222]
[1765818108062,1.43383,86467.0,86466.0,0.36732946]
[1765818108367,1.43483,86467.0,86466.0,0.01986946]
[1765818108566,0.70487,86467.0,86466.0,0.01986946]
[1765818108758,1.43483,86467.0,86466.0,0.01986946]
[1765818108956,1.43383,86467.0,86466.0,0.01986946]
[1765818109158,1.43483,86467.0,86466.0,0.01986946]
[1765818109865,0.70387,86467.0,86466.0,0.01986946]
[1765818110072,1.43387,86467.0,86466.0,0.01986946]
[1765818111368,1.43587,86467.0,86466.0,0.01986946]
[1765818111567,0.70387,86459.0,86458.0,0.10625423]
[1765818111866,1.06467,86459.0,86458.0,0.02206144]
[1765818112170,1.06467,86459.0,86458.0,1.44e-06]
[1765818112370,0.7154374,86451.0,86450.0,4e-05]
[1765818112572,1.4454374,86451.0,86450.0,0.01971004]
[1765818112771,1.4454374,86451.0,86450.0,0.11174941]
[1765818113069,1.4454374,86451.0,86450.0,0.01971004]
[1765818113270,1.6254374,86451.0,86450.0,0.01971004]
[1765818113475,0.7154385,86443.0,86442.0,0.00017349]
[1765818113772,1.4454385,86443.0,86442.0,0.00017349]
[1765818114077,1.8062385,86443.0,86442.0,0.00017349]
[1765818114572,1.8062385,86443.0,86431.0,0.44382499]
[1765818114573,0.70387,86432.0,86431.0,0.3608]
[1765818114773,1.43402137,86432.0,86431.0,0.3608]
[1765818114971,1.43402137,86432.0,86431.0,1.51958117]
[1765818115172,1.43402137,86432.0,86431.0,0.01958117]
[1765818115364,1.43402137,86432.0,86424.0,0.00010788]
[1765818115365,0.70387,86425.0,86424.0,0.00010788]
[1765818115976,0.7154409,86425.0,86424.0,0.00010788]
[1765818116172,0.7154409,86425.0,86424.0,0.00933415]
[1765818116368,0.715442,86417.0,86416.0,0.00017349]
[1765818116568,1.445522,86417.0,86416.0,0.00017349]
[1765818116970,1.445522,86417.0,86416.0,0.01953409]
[1765818117165,1.445522,86417.0,86416.0,0.00017349]
[1765818117677,1.446522,86417.0,86416.0,0.00017349]
[1765818117874,1.446522,86417.0,86416.0,3.49e-06]
[1765818118072,1.636522,86417.0,86416.0,0.01942981]
[1765818118378,1.636602,86417.0,86416.0,0.01942981]
[1765818118778,1.637602,86417.0,86416.0,0.01942981]
[1765818119177,1.527602,86417.0,86416.0,0.01942981]
[1765818119778,1.527682,86417.0,86416.0,0.01942981]
[1765818120581,0.797442,86417.0,86416.0,0.01942981]
[1765818120880,0.002,86417.0,86416.0,0.71826191]
[1765818121070,0.002,86417.0,86416.0,0.83398055]
[1765818121265,0.70587,86417.0,86416.0,0.01942981]
[1765818121465,0.717442,86417.0,86416.0,0.01942981]
[1765818121676,1.43611,86417.0,86416.0,0.01942981]
[1765818121876,1.56411,86417.0,86416.0,0.02042981]
[1765818122483,0.0115715,86421.0,86420.0,0.69656]
[1765818122773,0.0115703,86430.0,86427.0,0.0115706]
[1765818122982,0.07,86430.0,86429.0,0.33788]
[1765818123178,0.69358,86428.0,86427.0,0.3608]
[1765818123382,0.73358,86428.0,86427.0,0.3608]
[1765818123680,0.69358,86420.0,86419.0,0.69868]
[1765818124282,1.4239,86420.0,86419.0,0.3608]
[1765818124582,0.69358,86417.0,86416.0,0.01942981]
[1765818125283,1.4239,86417.0,86416.0,0.01942981]
[1765818125884,0.7051537,86404.0,86403.0,0.09110282]
[1765818126184,0.89851,86388.0,86387.0,0.0826506]
[1765818126380,1.98963,86388.0,86387.0,0.00012474]
[1765818126584,0.69358,86383.0,86381.0,0.08252586]
[1765818126787,0.69358,86382.0,86381.0,0.08252586]
[1765818126980,0.81358,86382.0,86381.0,0.10164255]
[1765818127291,0.0115771,86379.0,86378.0,1.28e-06]
[1765818127488,1.1727371,86379.0,86378.0,1.28e-06]
[1765818127684,1.1727371,86379.0,86378.0,0.01964754]
[1765818128783,1.1737371,86379.0,86378.0,0.01964754]
[1765818128984,1.2738171,86379.0,86378.0,0.01554804]
[1765818129287,0.7051577,86374.0,86373.0,0.00017359]
[1765818129487,0.7851577,86374.0,86373.0,0.00017359]
[1765818129689,0.78525838,86374.0,86373.0,0.01931684]
[1765818129889,0.15961,86359.0,86350.0,0.3608]
[1765818130088,0.15961,86359.0,86357.0,0.01158]
[1765818130289,0.399,86358.0,86357.0,0.44406243]
[1765818130491,0.399,86358.0,86357.0,0.70814]
[1765818130685,0.399,86358.0,86357.0,0.69656]
[1765818130994,0.34339,86352.0,86351.0,0.0115808]
[1765818131377,0.41058,86358.0,86350.0,0.01952228]
[1765818131378,0.69358,86351.0,86350.0,0.01952228]
[1765818131583,0.69358,86350.0,86349.0,0.00011626]
[1765818131887,0.3608,86355.0,86354.0,0.69656]
[1765818132289,0.73056,86357.0,86356.0,0.69656]
[1765818132491,0.0117526,86366.0,86364.0,0.69656]
[1765818132697,1.01764,86365.0,86364.0,0.69656]
[1765818132882,0.3608,86365.0,86364.0,0.69656]
[1765818133189,0.3608,86365.0,86362.0,0.0115792]
[1765818133190,0.0115791,86364.0,86358.0,0.0115798]
[1765818133579,0.3608,86365.0,86364.0,0.33788]
[1765818133785,0.3608,86365.0,86364.0,0.69656]
[1765818134090,0.4818137,86366.0,86365.0,0.69656]
[1765818134091,0.0001737,86366.0,86365.0,0.69656]
[1765818135410,0.0001737,86366.0,86364.0,0.012579]
[1765818135411,0.69358,86365.0,86364.0,0.001]
[1765818135690,1.07438,86365.0,86364.0,0.001]
[1765818136388,0.0115803,86356.0,86350.0,0.19228075]
[1765818136596,1.05438,86353.0,86352.0,0.7081406]
[1765818136788,0.70419,86353.0,86352.0,0.7081406]
[1765818137088,0.89851,86359.0,86358.0,0.0115799]
[1765818137298,0.3608,86365.0,86364.0,0.7081391]
[1765818137990,0.89851,86359.0,86358.0,0.0115799]
[1765818138496,0.69358,86353.0,86352.0,0.17669503]
[1765818138682,0.69358,86353.0,86352.0,0.002]
[1765818138886,0.69358,86353.0,86352.0,0.70056]
[1765818139288,0.3608,86365.0,86364.0,0.7081391]
[1765818139488,0.0001737,86366.0,86365.0,0.69656]
[1765818139684,0.6937537,86366.0,86365.0,0.3608]
[1765818139884,0.69358,86351.0,86350.0,0.0196888]
[1765818140090,1.5567608,86351.0,86349.0,0.00011626]
[1765818140288,0.69358,86350.0,86349.0,0.00011626]
[1765818140488,0.77358,86350.0,86349.0,0.00011626]
[1765818141196,0.77358,86350.0,86349.0,0.00111626]
[1765818141695,0.77358,86350.0,86349.0,0.02040528]
[1765818141891,0.77358,86350.0,86349.0,0.00111626]
[1765818142399,0.77458,86350.0,86349.0,0.00111626]
[1765818142985,0.001,86350.0,86349.0,0.71714007]
[1765818143185,0.001,86350.0,86349.0,0.69767626]
[1765818143497,0.001,86350.0,86349.0,0.71706149]
[1765818143698,0.3608,86370.0,86365.0,0.7081389]
[1765818143890,0.3608,86379.0,86365.0,0.7081389]
[1765818143891,0.3723785,86369.0,86365.0,0.7081389]
[1765818144084,0.3608,86379.0,86365.0,0.80085237]
[1765818144287,0.0115773,86378.0,86373.0,0.7081379]
[1765818144498,0.0115764,86384.0,86373.0,0.7081379]
[1765818144697,0.0115769,86381.0,86373.0,0.7081379]
[1765818144897,0.0115776,86376.0,86373.0,0.7081379]
[1765818145090,0.7051579,86373.0,86372.0,0.3608]
[1765818145399,0.3608,86373.0,86365.0,0.78927347]
[1765818145598,0.0115784,86370.0,86365.0,0.69656]
[1765818145800,0.0115784,86370.0,86368.0,0.0115784]
[1765818145991,0.3609737,86381.0,86373.0,0.69656]
[1765818146191,0.0001737,86381.0,86373.0,1.05836]
[1765818146391,0.0001737,86381.0,86373.0,1.17414228]
[1765818146591,0.0001737,86381.0,86380.0,0.80361]
[1765818146903,0.7053305,86381.0,86380.0,0.33788]
[1765818147092,0.0115777,86374.0,86373.0,1.4399778]
[1765818147299,0.0115774,86377.0,86376.0,0.7081373]
[1765818147494,0.01166613,86377.0,86376.0,0.7081373]
[1765818147888,0.01166613,86377.0,86376.0,0.69656]
[1765818148087,0.69358,86374.0,86373.0,0.33988]
[1765818148301,8.873e-05,86377.0,86376.0,0.81233222]
[1765818148600,0.0001737,86381.0,86380.0,0.9108269]
[1765818148906,0.0001737,86381.0,86380.0,1.2726269]
[1765818149206,0.3608,86398.0,86397.0,0.33788]
[1765818149388,0.5008,86398.0,86397.0,0.33788]
[1765818149592,0.50094833,86398.0,86397.0,0.69656]
[1765818149897,0.0115755,86391.0,86390.0,1.40775]
[1765818150105,0.0115754,86392.0,86390.0,1.53107311]
[1765818150303,0.0115749,86396.0,86391.0,0.11574408]
[1765818150504,0.0315749,86396.0,86390.0,0.85432311]
[1765818150803,0.0115752,86393.0,86392.0,0.33271]
[1765818150996,0.35895,86393.0,86392.0,0.33271]
[1765818152005,0.68639,86391.0,86390.0,0.09552926]
[1765818152209,0.0115752,86393.0,86392.0,0.68226]
[1765818152507,0.36094833,86398.0,86397.0,0.68226]
[1765818152799,0.68639,86393.0,86392.0,0.001]
[1765818153596,0.68639,86390.0,86389.0,0.0115757]
[1765818154006,0.68639,86384.0,86383.0,0.16101105]
[1765818154207,0.68639,86382.0,86381.0,0.36638344]
[1765818154406,0.35399,86382.0,86381.0,0.6938368]
[1765818154703,0.68639,86382.0,86381.0,0.3371668]
[1765818155297,0.0115762,86386.0,86385.0,0.32559]
[1765818155504,0.0115762,86386.0,86381.0,0.001]
[1765818155505,0.68639,86382.0,86381.0,0.001]
[1765818155894,0.68639,86382.0,86381.0,0.002]
[1765818156303,0.35399,86382.0,86381.0,0.6958368]
[1765818156498,0.3608,86391.0,86385.0,0.32559]
[1765818156499,0.0115762,86386.0,86385.0,0.32559]